bitfinex/quotes_ETHUSD_20241129
["timestamp","ask_amount","ask_price","bid_price","bid_amount"]
[1732889571193,2.85514472,3612.0,3611.4,2.769]
[1732889571483,2.76855,3612.0,3611.6,0.8002]
[1732889572047,2.76846,3612.2,3611.6,3.56904]
[1732889572252,0.08659296,3612.1,3611.6,0.8002]
[1732889572493,0.08658889,3612.8,3611.7,3.7718]
[1732889572692,0.08658889,3612.7,3612.3,2.76828]
[1732889572853,2.76806,3612.7,3611.9,2.7686]
[1732889573049,2.76806,3612.7,3612.1,2.76841]
[1732889573464,0.08657849,3612.6,3612.1,2.76841]
[1732889573784,0.08657989,3612.6,3611.9,2.7686]
[1732889573960,2.76819,3612.5,3612.0,0.35404]
[1732889574169,2.76832,3612.3,3611.8,6.54049]
[1732889574689,2.76822,3612.5,3611.8,6.54049]
[1732889575096,2.76822,3612.5,3612.0,2.76853]
[1732889576050,2.76804,3612.7,3612.0,2.76853]
[1732889576253,2.76804,3612.7,3612.2,2.76838]
[1732889576587,2.76814,3612.6,3612.0,2.76849]
[1732889576799,2.76814,3612.6,3612.0,3.399394]
[1732889579262,2.76818,3612.5,3612.0,3.399394]
[1732889579670,2.76825,3612.4,3612.0,0.630904]
[1732889579989,2.76794,3612.8,3612.0,3.399444]
[1732889580225,2.76816,3612.5,3612.0,3.399444]
[1732889580438,2.76816,3612.5,3612.1,0.4171244]
[1732889581530,2.76808,3612.7,3612.1,0.4171244]
[1732889581827,0.54190917,3613.1,3612.3,0.8278]
[1732889582321,0.54190917,3613.1,3612.7,2.76796]
[1732889583007,2.76763,3613.2,3612.7,2.76796]
[1732889583208,2.76763,3613.2,3612.5,5.53623]
[1732889583407,0.08656781,3613.1,3612.6,0.636403]
[1732889583637,2.76748,3613.4,3612.6,0.636403]
[1732889583835,0.08656679,3613.3,3612.3,3.59609]
[1732889584126,3.66702687,3613.6,3612.3,3.59609]
[1732889584127,0.08656679,3613.5,3612.4,5.53648]
[1732889584284,0.08656679,3613.5,3612.3,0.85547945]
[1732889584285,2.85402679,3613.5,3612.9,2.7678]
[1732889584490,2.76749,3613.4,3612.9,2.7678]
[1732889585085,2.76732,3613.6,3612.9,2.7678]
[1732889585415,0.08656087,3613.5,3612.9,2.7678]
[1732889585719,0.08656007,3613.5,3612.6,3.772]
[1732889585930,2.76768,3613.2,3612.6,6.54008]
[1732889586110,2.76772,3613.1,3612.6,3.772]
[1732889586286,0.7714,3613.3,3612.3,0.7728]
[1732889586481,2.76825,3612.4,3612.0,0.7728]
[1732889586739,2.76833,3612.3,3611.7,3.54152]
[1732889587023,2.76825,3612.4,3611.8,3.399704]
[1732889587220,0.8054,3612.5,3612.0,2.76854]
[1732889587424,2.76824,3612.4,3611.8,3.399684]
[1732889587735,2.76824,3612.4,3611.9,2.76862]
[1732889587934,0.8054,3612.5,3611.9,2.76862]
[1732889588142,0.8054,3612.5,3612.0,2.76854]
[1732889588355,3.57337,3612.8,3611.9,0.9941184]
[1732889588517,0.08657904,3612.7,3612.1,2.76846]
[1732889588704,2.76797,3612.8,3612.1,2.7684]
[1732889588898,2.76797,3612.8,3612.2,2.76839]
[1732889589207,2.76797,3612.8,3612.2,3.50219484]
[1732889589405,0.7722,3612.9,3612.3,2.76824]
[1732889589627,2.76778,3613.0,3612.4,2.76822]
[1732889592539,2.76765,3613.2,3612.5,2.76809]
[1732889592748,2.85433168,3613.1,3612.5,2.76809]
[1732889592938,2.85437168,3613.0,3612.4,2.76822]
[1732889593144,2.7678,3613.0,3612.4,2.76822]
[1732889594140,2.76765,3613.2,3612.5,2.76816]
[1732889594141,5.53533,3613.2,3612.5,2.76816]
[1732889594442,0.08656974,3613.1,3612.5,2.76816]
[1732889594643,0.08656974,3613.0,3612.6,3.54845]
[1732889594844,0.08656974,3613.2,3612.7,2.76795]
[1732889595345,0.08656974,3613.2,3612.8,2.76792]
[1732889595550,2.76765,3613.2,3612.6,0.7804]
[1732889595750,2.76779,3613.0,3612.6,0.7804]
[1732889596253,2.76783,3613.0,3612.6,0.7804]
[1732889596407,2.76765,3613.2,3612.6,0.7804]
[1732889596749,0.0865671,3613.1,3612.2,1.50110484]
[1732889597052,2.76795,3612.8,3612.3,3.0]
[1732889597250,2.76807,3612.7,3612.2,3.7673]
[1732889597553,2.76793,3612.9,3612.2,0.7673]
[1732889597752,0.08657488,3612.8,3612.2,3.53564]
[1732889597947,0.08657488,3612.7,3612.2,3.53564]
[1732889598132,0.08657488,3612.7,3612.2,0.7673]
[1732889598339,2.76808,3612.7,3612.2,0.7673]
[1732889598514,0.08657889,3612.6,3612.2,0.7673]
[1732889598979,0.08657591,3612.8,3612.2,0.7673]
[1732889599140,0.08657591,3612.7,3612.2,1.697731]
[1732889599338,2.76794,3612.8,3612.2,1.697731]
[1732889599723,0.08657526,3612.7,3612.2,1.697731]
[1732889599925,2.76794,3612.8,3612.2,1.697731]
[1732889600126,2.76811,3612.6,3612.2,1.697731]
[1732889600752,2.76794,3612.8,3612.2,0.7673]
[1732889600952,0.0865744,3612.7,3612.2,0.7673]
[1732889601258,0.08657643,3612.6,3612.2,0.7673]
[1732889601428,2.76794,3612.8,3612.2,0.7673]
[1732889601633,2.7681,3612.6,3612.2,0.7673]
[1732889601952,0.805,3612.3,3611.6,3.8141]
[1732889602117,2.76844,3612.2,3611.6,0.8141]
[1732889602317,2.76847,3612.1,3611.6,0.8141]
[1732889602540,2.76847,3612.1,3611.6,1.449304]
[1732889603252,0.805,3612.3,3611.6,1.449304]
[1732889603554,2.85503669,3612.2,3611.6,4.449304]
[1732889603732,2.76862,3612.0,3611.6,0.8141]
[1732889604147,2.76863,3611.9,3611.6,0.8141]
[1732889604347,2.76838,3612.3,3611.6,3.8141]
[1732889604655,2.76841,3612.2,3611.6,6.58291]
[1732889604957,2.76863,3611.9,3611.6,0.8141]
[1732889605332,2.51251087,3612.0,3610.7,0.7936]
[1732889605520,0.7547,3611.3,3610.3,0.7936]
[1732889605881,2.76934,3611.0,3610.4,2.76976]
[1732889606222,2.76916,3611.2,3610.5,2.76963]
[1732889606423,2.76916,3611.2,3610.4,2.76976]
[1732889606424,2.76916,3611.2,3610.6,2.7696]
[1732889606647,2.76924,3611.1,3610.6,2.7696]
[1732889606847,2.76924,3611.1,3610.6,3.0]
[1732889607051,2.76924,3611.1,3610.6,3.6919637]
[1732889607465,2.76937,3611.0,3610.6,0.6919637]
[1732889607764,2.76952,3610.8,3610.3,0.7936]
[1732889607926,2.76963,3610.6,3610.3,0.7936]
[1732889608265,2.76954,3610.8,3610.3,0.7936]
[1732889608636,2.76956,3610.7,3610.3,0.7936]
[1732889608959,2.76947,3610.8,3610.3,3.56343]
[1732889609120,2.76893,3611.5,3610.7,2.76951]
[1732889609321,2.76918,3611.2,3610.5,5.76966]
[1732889610666,2.76918,3611.2,3610.6,2.76962]
[1732889611337,2.7691,3611.3,3610.7,2.76951]
[1732889611741,2.76917,3611.2,3610.7,2.76951]
[1732889612069,2.76917,3611.2,3610.5,5.76965]
[1732889612263,2.76917,3611.2,3610.6,2.76955]
[1732889612563,2.76913,3611.3,3610.7,2.76951]
[1732889612773,2.51251087,3612.4,3610.9,0.7783]
[1732889613070,2.76893,3611.5,3610.9,0.7783]
[1732889613262,5.53694,3612.1,3610.9,0.7783]
[1732889613565,2.76925,3611.1,3610.6,3.8017]
[1732889614084,2.7694,3610.9,3610.6,0.8017]
[1732889614561,0.7799,3611.3,3610.4,3.0]
[1732889614769,0.7799,3611.3,3610.3,3.8017]
[1732889614970,2.76937,3611.0,3610.3,0.8017]
[1732889615137,2.76937,3611.0,3610.5,3.0]
[1732889615337,2.76937,3611.0,3610.3,0.8017]
[1732889615534,2.76959,3610.7,3610.3,0.8017]
[1732889616673,2.76941,3610.9,3610.3,0.8017]
[1732889616981,2.76941,3610.9,3610.3,3.8017]
[1732889617270,2.76948,3610.8,3610.3,5.035869]
[1732889618870,2.76937,3611.0,3610.3,7.805709]
[1732889619073,2.76939,3610.9,3610.3,5.035869]
[1732889619272,3.54899,3611.3,3610.5,3.0]
[1732889619558,2.76936,3611.0,3610.5,3.0]
[1732889620116,2.76939,3610.9,3610.3,7.805689]
[1732889620271,2.76948,3610.8,3610.3,7.805689]
[1732889621461,2.76926,3611.1,3610.4,3.5502989]
[1732889621658,2.76926,3611.1,3610.5,3.0]
[1732889622899,2.76935,3611.0,3610.5,3.0]
[1732889623306,2.76926,3611.1,3610.5,3.0]
[1732889623479,2.76945,3610.9,3610.3,0.8017]
[1732889623801,2.76945,3610.9,3610.3,4.435862]
[1732889624103,2.76945,3610.9,3610.3,7.205692]
[1732889624501,2.76944,3610.9,3610.3,4.435862]
[1732889624680,2.76944,3610.9,3610.4,3.0]
[1732889624876,2.76948,3610.8,3610.4,3.0]
[1732889625077,2.76944,3610.9,3610.3,1.435862]
[1732889625404,2.76975,3610.5,3610.0,3.7718]
[1732889625613,2.76975,3610.5,3608.7,3.20246561]
[1732889625614,2.76972,3610.5,3608.7,0.28946561]
[1732889625813,2.76939,3610.9,3610.1,3.5976]
[1732889625962,2.76931,3611.0,3610.1,0.8276]
[1732889626168,2.76954,3610.8,3610.2,2.76992]
[1732889626362,0.7633,3611.1,3610.4,2.76976]
[1732889626769,2.76945,3610.9,3610.2,3.406681]
[1732889627005,2.76945,3610.9,3610.4,2.76976]
[1732889627205,2.76945,3610.9,3610.2,3.406681]
[1732889628196,2.76945,3610.9,3610.3,2.76984]
[1732889630920,2.7696,3610.7,3610.2,3.0]
[1732889631092,2.76949,3610.8,3610.2,5.76992]
[1732889631497,0.7633,3611.1,3610.9,2.76933]
[1732889631688,0.08661753,3611.4,3610.8,0.7888]
[1732889631887,2.76918,3611.2,3610.8,0.7888]
[1732889632484,3.31791087,3611.5,3610.5,3.54087]
[1732889632685,2.76927,3611.1,3610.5,0.7712]
[1732889632885,2.76927,3611.1,3610.3,2.76982]
[1732889633136,0.8054,3610.9,3610.4,2.76977]
[1732889633316,2.76927,3611.1,3610.5,2.76969]
[1732889633723,2.76927,3611.1,3610.8,0.008]
[1732889634485,0.08661827,3611.0,3610.8,0.008]
[1732889634686,2.76927,3611.1,3610.8,0.008]
[1732889635086,3.57461,3611.2,3610.8,0.008]
[1732889635326,2.85589826,3611.1,3610.8,0.008]
[1732889635536,0.08661826,3611.0,3610.8,0.008]
[1732889635685,2.76928,3611.1,3610.8,0.008]
[1732889636034,0.08661741,3611.0,3610.8,0.008]
[1732889636243,0.9439889,3611.2,3610.8,0.008]
[1732889636393,0.08661689,3611.1,3610.8,0.008]
[1732889636659,0.08661689,3611.0,3610.8,0.008]
[1732889636993,3.57457,3611.2,3610.8,0.008]
[1732889637146,0.08661588,3611.1,3610.8,0.008]
[1732889637492,0.08661588,3611.0,3610.8,0.008]
[1732889637693,3.57457,3611.2,3610.8,0.008]
[1732889637876,0.08661585,3611.1,3610.8,0.008]
[1732889638063,0.08661585,3611.0,3610.8,0.008]
[1732889638396,6.12491922,3610.9,3610.8,0.008]
[1732889638574,3.61240835,3610.9,3610.8,0.008]
[1732889638788,3.75099374,3610.9,3610.8,0.008]
[1732889639350,3.92424799,3610.9,3610.8,0.008]
[1732889640861,0.39845799,3610.9,3610.8,0.008]
[1732889641098,0.39845799,3610.9,3610.8,0.368171]
[1732889641099,0.22520374,3610.9,3610.8,0.368171]
[1732889641470,0.17325425,3611.3,3610.8,0.368171]
[1732889641806,0.07798645,3611.4,3610.8,0.368171]
[1732889641807,2.9943468,3611.2,3610.8,0.368171]
[1732889641960,2.85576991,3611.2,3610.8,0.368171]
[1732889642162,0.08660991,3611.1,3610.8,0.368171]
[1732889642506,0.08660991,3611.0,3610.8,0.368171]
[1732889642711,0.08660991,3610.9,3610.8,0.008]
[1732889642861,2.85599991,3610.9,3610.8,0.008]
[1732889643509,2.99458826,3610.9,3610.8,0.008]
[1732889645257,3.54458826,3610.9,3610.8,0.008]
[1732889645513,4.55768709,3610.9,3610.8,0.008]
[1732889646413,4.63567354,3610.9,3610.8,0.008]
[1732889646706,4.55768709,3610.9,3610.8,0.008]
[1732889648501,4.15959991,3610.9,3610.8,0.008]
[1732889651406,2.76952,3610.8,3610.2,3.56372]
[1732889651566,2.85599991,3610.9,3610.2,3.56372]
[1732889651567,2.76939,3610.9,3610.3,0.356372]
[1732889651768,0.8015,3611.2,3610.3,0.356372]
[1732889651769,0.08662777,3610.8,3610.3,0.356372]
[1732889652078,2.76962,3610.6,3610.3,0.356372]
[1732889652602,2.76984,3610.4,3609.8,0.7573]
[1732889652806,2.77015,3609.9,3609.8,0.7573]
[1732889653402,2.77007,3610.1,3609.8,0.7573]
[1732889653896,2.77009,3610.0,3609.8,0.7573]
[1732889654289,2.77007,3610.1,3609.8,0.7573]
[1732889655271,2.77052,3609.5,3609.1,0.8046]
[1732889657783,2.76252,3609.5,3609.1,0.8046]
[1732889658477,0.7635,3609.8,3609.1,0.8046]
[1732889658682,0.55,3609.4,3608.5,0.8137]
[1732889658911,2.77077,3609.1,3608.5,3.58488]
[1732889659888,0.55,3609.2,3608.6,3.0]
[1732889660100,3.3207,3609.2,3608.6,5.77113]
[1732889660500,3.3207,3609.2,3608.6,6.706743]
[1732889661222,0.55,3609.3,3608.6,6.706743]
[1732889661381,0.55,3609.3,3608.6,5.77113]
[1732889662026,0.55,3609.1,3608.6,3.0]
[1732889662222,0.55,3609.1,3608.7,2.77107]
[1732889662427,0.55,3609.2,3608.7,2.77107]
[1732889663028,2.77015,3610.0,3609.4,2.77053]
[1732889663237,2.77023,3609.8,3609.2,2.77064]
[1732889663417,2.77034,3609.7,3609.0,3.53822]
[1732889663616,2.51251087,3610.0,3609.0,3.53822]
[1732889663789,2.77041,3609.6,3609.0,3.53822]
[1732889665233,2.77041,3609.6,3608.5,3.0]
[1732889665234,0.55,3609.3,3608.7,0.7674]
[1732889665393,0.55,3609.2,3608.7,3.53845]
[1732889665584,0.55,3609.2,3608.7,3.53846]
[1732889665926,2.77086,3609.0,3608.7,0.7674]
[1732889666230,0.55,3609.4,3608.8,2.77095]
[1732889666521,2.77062,3609.3,3608.7,0.7674]
[1732889666725,0.55,3609.2,3608.7,0.7674]
[1732889666928,0.55,3609.2,3608.7,3.53848]
[1732889667339,0.55,3609.1,3608.7,3.53848]
[1732889667838,2.77069,3609.2,3608.7,3.53848]
[1732889668338,3.32059,3609.4,3608.8,2.77093]
[1732889668627,0.55,3609.5,3608.9,2.77092]
[1732889668789,0.55,3609.5,3609.1,2.77076]
[1732889669618,0.55,3609.5,3608.9,2.77092]
[1732889669933,3.32033,3609.7,3609.1,2.77075]
[1732889670140,0.55,3609.7,3609.2,0.7827]
[1732889670296,3.32032,3609.7,3609.2,0.7827]
[1732889670821,0.7767,3610.2,3609.2,1.415134]
[1732889671026,2.51251087,3610.4,3609.2,1.415134]
[1732889671027,0.08665154,3610.3,3609.9,2.77014]
[1732889671205,2.51251087,3610.8,3609.9,2.77014]
[1732889671206,0.7601,3610.7,3609.9,2.77014]
[1732889671407,0.7601,3610.7,3610.1,2.76995]
[1732889671408,3.52969,3610.7,3610.1,2.76995]
[1732889671724,0.086637,3610.6,3610.1,2.76995]
[1732889672100,2.856267,3610.6,3610.1,2.76995]
[1732889672338,0.086637,3610.6,3610.1,2.76995]
[1732889672523,0.63663054,3610.6,3610.1,2.76995]
[1732889672944,0.63663054,3610.6,3609.9,2.7701]
[1732889673235,3.40625054,3610.6,3610.0,2.77007]
[1732889673399,3.31962,3610.6,3610.0,2.77007]
[1732889673608,0.55,3610.6,3609.9,0.35635]
[1732889673938,0.55,3610.4,3610.1,2.77]
[1732889674099,0.55,3610.5,3610.1,2.77]
[1732889674300,0.55,3610.6,3610.1,2.77]
[1732889674504,3.40626951,3610.6,3609.9,3.12649]
[1732889674754,3.31964,3610.6,3610.0,2.77007]
[1732889676545,0.55,3610.4,3609.9,0.35635]
[1732889676841,2.76985,3610.3,3609.9,0.35635]
[1732889677140,2.76977,3610.4,3609.8,3.56363]
[1732889677748,2.76985,3610.3,3609.8,3.56363]
[1732889678438,3.31963,3610.6,3609.8,3.56363]
[1732889678439,2.76975,3610.5,3609.8,3.56363]
[1732889678765,2.76998,3610.2,3609.6,2.77037]
[1732889678974,2.76985,3610.3,3609.5,0.8305]
[1732889679171,2.77003,3610.1,3609.5,3.60091]
[1732889679327,0.08664117,3610.2,3609.5,0.8305]
[1732889679328,2.77018,3609.9,3609.5,0.8305]
[1732889679529,2.77014,3610.0,3609.3,2.7706]
[1732889679880,2.77014,3610.0,3609.4,0.8305]
[1732889680045,0.55,3609.5,3609.0,0.8305]
[1732889680230,3.32047,3609.5,3609.0,0.8305]
[1732889681244,2.77066,3609.3,3609.0,0.8305]
[1732889681815,2.77072,3609.2,3608.6,3.52552]
[1732889681942,2.77077,3609.1,3608.6,4.155207]
[1732889682273,2.77077,3609.1,3608.6,1.384087]
[1732889682424,3.32074,3609.2,3608.6,1.384087]
[1732889682630,3.32074,3609.2,3608.6,4.155237]
[1732889683034,2.7708,3609.1,3608.6,1.384087]
[1732889683676,2.7708,3609.1,3608.6,0.7544]
[1732889683969,3.32073,3609.2,3608.6,3.52555]
[1732889684961,0.55,3609.2,3608.7,2.77107]
[1732889685270,0.55,3609.4,3609.0,0.8159]
[1732889685470,3.32054,3609.4,3609.0,0.8159]
[1732889686870,2.77077,3609.2,3608.7,0.7782]
[1732889687080,0.7694,3609.1,3608.4,5.77128]
[1732889687272,2.7709,3609.0,3608.4,6.425078]
[1732889687632,2.7709,3609.0,3608.5,2.77123]
[1732889687837,2.77077,3609.2,3608.5,2.77123]
[1732889688238,2.77077,3609.1,3608.5,2.77123]
[1732889689037,2.77067,3609.3,3608.7,2.77108]
[1732889689240,2.77067,3609.3,3608.8,0.353698]
[1732889689567,2.77067,3609.3,3608.8,3.124678]
[1732889690086,0.55,3609.5,3608.8,3.124678]
[1732889690370,0.55,3609.5,3608.8,0.353698]
[1732889690575,2.77063,3609.3,3608.6,3.53699]
[1732889690761,3.32075,3609.2,3608.6,3.53699]
[1732889691135,3.32075,3609.2,3608.7,2.77106]
[1732889691779,3.32064,3609.3,3608.7,2.77106]
[1732889691990,0.7639,3610.4,3609.4,0.796]
[1732889692189,0.08664497,3610.3,3609.7,0.796]
[1732889692350,2.77021,3609.9,3609.4,0.796]
[1732889692550,0.7639,3610.1,3609.4,0.796]
[1732889692744,2.77023,3609.8,3609.4,0.796]
[1732889692974,2.77039,3609.6,3609.4,0.796]
[1732889693495,3.27641087,3610.1,3609.0,2.77079]
[1732889693496,2.77046,3609.5,3609.0,0.762]
[1732889694378,2.77046,3609.5,3609.0,1.7554668]
[1732889694686,2.77046,3609.5,3609.0,0.762]
[1732889694888,2.77049,3609.5,3609.0,0.762]
[1732889695192,2.77055,3609.4,3609.0,0.762]
[1732889696549,2.77055,3609.4,3608.5,3.0]
[1732889696550,0.55,3609.3,3608.5,3.0]
[1732889696750,2.77076,3609.2,3608.6,3.53864]
[1732889696977,2.77079,3609.1,3608.6,0.7675]
[1732889697823,3.32065,3609.3,3608.6,0.7675]
[1732889697992,0.08666287,3609.2,3608.6,0.7675]
[1732889698420,2.7709,3609.0,3608.6,0.7675]
[1732889700293,0.55,3609.3,3608.2,2.77145]
[1732889700294,2.77097,3608.9,3608.3,0.7712]
[1732889700497,2.77112,3608.7,3608.3,0.7712]
[1732889701316,3.56737,3608.9,3608.3,0.7712]
[1732889701495,2.77128,3608.5,3608.3,0.7712]
[1732889701697,2.77128,3608.5,3608.0,3.8187]
[1732889701924,2.77101,3608.8,3608.2,2.77146]
[1732889702497,3.06251087,3609.3,3608.0,7.26471206]
[1732889702498,0.55,3609.3,3608.7,2.77107]
[1732889702708,0.63666594,3609.3,3608.8,2.77099]
[1732889702911,2.77044,3609.6,3609.0,2.77079]
[1732889703231,0.08665739,3609.5,3609.2,2.77066]
[1732889703434,2.77039,3609.6,3609.0,2.77079]
[1732889703889,0.8054,3609.5,3608.8,2.77098]
[1732889704088,0.08665718,3609.5,3609.0,2.7708]
[1732889704539,0.08665733,3609.5,3609.0,2.7708]
[1732889704744,0.08665733,3609.5,3609.2,2.77066]
[1732889704910,2.85697733,3609.7,3609.0,2.77078]
[1732889705235,0.08665733,3609.6,3608.9,0.7852]
[1732889705445,2.85689733,3609.8,3609.2,2.77069]
[1732889705637,0.63665733,3609.7,3609.0,2.77082]
[1732889705938,2.77039,3609.6,3608.9,0.7852]
[1732889706240,0.08665733,3609.5,3609.1,2.77077]
[1732889706792,0.08665733,3609.5,3608.9,3.55611]
[1732889706997,2.7706,3609.4,3608.5,0.8002]
[1732889707196,2.7706,3609.4,3608.7,2.77104]
[1732889707197,2.7707,3609.2,3608.7,2.77104]
[1732889707632,2.7707,3609.2,3608.5,3.57141]
[1732889707835,2.77112,3608.7,3608.5,0.8002]
[1732889708003,2.77092,3608.9,3607.3,2.51251087]
[1732889708004,2.77106,3608.8,3607.9,3.57186]
[1732889708211,0.89207311,3608.7,3607.9,1.17276306]
[1732889708404,0.89207311,3608.7,3607.7,2.77182]
[1732889708405,2.77146,3608.2,3607.7,2.77182]
[1732889708804,2.77137,3608.4,3607.8,2.9254906]
[1732889709507,2.77137,3608.4,3607.9,2.77168]
[1732889709813,0.55,3608.6,3607.9,2.77168]
[1732889710026,0.0866834,3608.5,3607.9,2.77168]
[1732889710212,2.8579734,3608.5,3607.9,2.77168]
[1732889710425,0.0866834,3608.4,3607.9,2.77168]
[1732889710905,2.77139,3608.3,3607.8,0.1537706]
[1732889711737,3.32116,3608.6,3607.8,0.1537706]
[1732889711738,2.77128,3608.5,3607.8,0.1537706]
[1732889711986,0.08668284,3608.4,3607.8,0.1537706]
[1732889712191,3.32118,3608.6,3607.8,0.1537706]
[1732889712192,0.08668284,3608.5,3607.8,2.9255006]
[1732889712350,2.77138,3608.3,3607.8,2.9255006]
[1732889712549,2.77135,3608.4,3607.8,2.9255006]
[1732889712874,2.77139,3608.3,3607.8,2.9255006]
[1732889713050,2.77128,3608.5,3607.8,2.9255006]
[1732889713751,2.77134,3608.4,3607.8,0.1537706]
[1732889713959,2.77139,3608.3,3607.8,0.1537706]
[1732889715601,2.77131,3608.4,3607.8,0.1537706]
[1732889715811,2.77169,3607.9,3607.8,0.1537706]
[1732889717046,2.77131,3608.4,3607.8,0.1537706]
[1732889717301,2.77131,3608.4,3607.8,2.9255406]
[1732889717665,2.77131,3608.4,3607.8,0.1537706]
[1732889717866,2.77149,3608.2,3607.8,0.1537706]
[1732889718068,3.29381087,3608.6,3607.8,0.1537706]
[1732889718307,2.77168,3608.0,3607.8,0.1537706]
[1732889718511,3.29381087,3608.6,3607.8,0.1537706]
[1732889718665,0.08669354,3608.5,3607.8,0.1537706]
[1732889718867,2.77159,3608.1,3607.8,0.1537706]
[1732889719069,2.77141,3608.3,3607.8,0.1537706]
[1732889719294,2.7716,3608.1,3607.8,0.1537706]
[1732889719492,2.77156,3608.1,3607.8,0.1537706]
[1732889719867,3.29381087,3608.6,3607.8,0.1537706]
[1732889719868,3.57548,3608.0,3607.8,0.1537706]
[1732889720067,0.8038,3608.0,3607.8,0.1537706]
[1732889720773,2.77169,3607.9,3607.8,0.1537706]
[1732889722082,2.77116,3608.6,3607.8,0.1537706]
[1732889722083,3.5768,3608.3,3607.8,0.1537706]
[1732889722410,2.77158,3608.1,3607.8,0.1537706]
[1732889723905,3.5768,3608.3,3607.8,0.1537706]
[1732889725113,2.77156,3608.1,3607.8,0.1537706]
[1732889725318,2.77166,3608.0,3607.8,0.1537706]
[1732889725673,2.77169,3607.9,3607.8,0.1537706]
[1732889725909,2.77158,3608.1,3607.8,0.1537706]
[1732889726109,3.57679,3608.3,3607.8,0.1537706]
[1732889726723,2.77139,3608.3,3607.8,0.1537706]
[1732889727509,3.55424,3608.5,3607.8,0.1537706]
[1732889727712,0.08668571,3608.4,3607.8,0.1537706]
[1732889728025,0.08668571,3608.4,3607.8,2.9254906]
[1732889728181,2.85801571,3608.4,3607.8,0.1537706]
[1732889728504,2.7714,3608.3,3607.8,0.1537706]
[1732889729127,3.55424,3608.5,3607.8,0.1537706]
[1732889729291,2.85800709,3608.4,3607.8,0.1537706]
[1732889729502,3.55424,3608.5,3607.8,0.1537706]
[1732889729806,2.77144,3608.3,3607.8,0.1537706]
[1732889730757,2.77146,3608.2,3607.8,0.1537706]
[1732889731328,2.77154,3608.1,3607.8,0.1537706]
[1732889733629,2.7716,3608.1,3607.8,0.1537706]
[1732889734428,2.77162,3608.0,3607.8,0.1537706]
[1732889734653,2.77169,3607.9,3607.8,0.1537706]
[1732889735028,3.57709,3607.9,3607.8,0.1537706]
[1732889735237,3.66378514,3607.9,3607.8,0.1537706]
[1732889737322,3.80250394,3607.9,3607.8,0.1537706]
[1732889737510,3.66378514,3607.9,3607.8,0.1537706]
[1732889737715,3.80250394,3607.9,3607.8,0.1537706]
[1732889738043,3.66378514,3607.9,3607.8,0.1537706]
[1732889738264,3.80250394,3607.9,3607.8,0.1537706]
[1732889738448,3.80251613,3607.9,3607.8,0.1537706]
[1732889738809,4.35251613,3607.9,3607.8,0.1537706]
[1732889739310,2.77253,3606.9,3606.2,0.7683]
[1732889739511,2.77278,3606.5,3606.2,0.7683]
[1732889739711,2.77266,3606.7,3606.2,0.7683]
[1732889740557,2.7727,3606.6,3606.2,0.7683]
[1732889740764,2.77266,3606.7,3606.2,0.7683]
[1732889741956,2.7726,3606.8,3606.1,2.77302]
[1732889742118,2.77262,3606.7,3606.1,2.77302]
[1732889742476,2.7726,3606.8,3606.0,0.804]
[1732889742477,2.7729,3606.4,3606.0,0.804]
[1732889742960,2.77263,3606.7,3606.0,3.57708]
[1732889743144,0.08673158,3606.6,3606.0,0.804]
[1732889743351,2.77277,3606.5,3606.0,0.804]
[1732889743512,0.8054,3606.4,3605.7,0.7845]
[1732889743713,2.77328,3605.9,3605.3,3.55819]
[1732889743951,2.7731,3606.1,3605.4,2.77356]
[1732889744257,2.77294,3606.3,3605.4,2.77356]
[1732889744258,2.77316,3606.0,3605.4,2.77356]
[1732889744479,2.77308,3606.1,3605.4,2.77356]
[1732889744766,2.77292,3606.3,3605.3,0.7845]
[1732889745119,2.773,3606.2,3605.4,2.77356]
[1732889745318,2.77316,3606.0,3605.4,2.77356]
[1732889746253,2.77316,3606.0,3605.3,3.55816]
[1732889746755,2.77323,3605.9,3605.3,3.55816]
[1732889746946,2.77313,3606.1,3605.3,3.55816]
[1732889747145,2.77323,3605.9,3605.3,3.55817]
[1732889747516,2.77311,3606.1,3605.4,2.77359]
[1732889747947,3.31791087,3606.4,3605.3,0.7845]
[1732889748260,2.77331,3605.8,3605.3,0.7845]
[1732889748463,2.77336,3605.8,3605.3,0.7845]
[1732889749330,2.77341,3605.7,3605.3,0.7845]
[1732889749719,2.77351,3605.6,3605.0,3.7559]
[1732889749919,2.77332,3605.8,3605.1,2.77383]
[1732889750146,2.77332,3605.8,3605.2,2.77377]
[1732889750372,2.77338,3605.7,3605.0,6.52979]
[1732889750657,2.77338,3605.7,3605.1,2.77384]
[1732889751660,2.77331,3605.8,3605.1,2.77384]
[1732889751958,2.77339,3605.7,3605.1,2.77384]
[1732889752659,2.77323,3605.9,3605.1,2.77384]
[1732889752835,2.77323,3605.9,3605.3,2.77368]
[1732889753040,2.51251087,3606.0,3605.1,2.77384]
[1732889753342,2.51251087,3606.0,3605.0,0.7559]
[1732889753548,2.77339,3605.7,3605.0,3.52977]
[1732889753930,2.77339,3605.7,3605.0,0.7559]
[1732889754134,2.77339,3605.7,3605.1,2.77383]
[1732889754547,2.77344,3605.7,3605.0,3.52977]
[1732889754734,2.77344,3605.7,3605.1,2.77384]
[1732889754942,2.77344,3605.7,3605.0,0.7559]
[1732889754943,2.77348,3605.6,3605.0,3.5298]
[1732889755526,2.77345,3605.7,3605.0,3.5298]
[1732889755727,2.77323,3605.9,3605.2,2.77371]
[1732889755956,3.55131,3606.1,3605.1,2.77384]
[1732889756129,0.7896,3606.4,3605.8,2.77328]
[1732889756321,3.56249,3606.4,3605.8,2.77328]
[1732889756741,2.77293,3606.3,3605.6,6.30675]